Cogmind - Beta 14 --- EXPLORER MODE // 2024.10.08 @ 20:40:29 Player: Cwaftwer Result: Self-destructed Performance ------------- Evolutions (2) 1000 Regions Visited (3) 600 Robots Destroyed (13) 65 Value Destroyed (278) 278 Prototype IDs (1) 20 Alien Tech Used (0) 0 Bonus (1618) 1618 TOTAL SCORE: 3581 Bonus ------- Super Gauntlet 1618 Cogmind --------- Core Integrity 438/550 Matter 220/300 Energy 100/100 System Corruption 0% Temperature Cool (76) Movement Core (50) Location -8/Materials Parts ------- > --- POWER (2) -------- (None) > --- PROPULSION (4) --- (None) > --- UTILITY (4) ------ System Shield > --- WEAPON (2) ------- Improved Assault Rifle > --- INVENTORY (5) ---- Hardened Light Armor Plating Improved Assault Rifle Improved Assault Rifle Axe Peak State ------------ > --- POWER ------------ Light Ion Engine Light Nuclear Core > --- PROPULSION ------- Flight Unit Flight Unit Flight Unit > --- UTILITY ---------- System Shield > --- WEAPON ----------- Improved Assault Rifle Improved Assault Rifle > --- INVENTORY -------- Hardened Light Armor Plating Improved Assault Rifle Improved Assault Rifle Axe [Rating: 17] Favorites ----------- Power Light Ion Engine Engine Light Ion Engine Power Core Light Nuclear Core Propulsion Flight Unit Flight Unit Flight Unit Utility System Shield Hackware System Shield Weapon Improved Assault Rifle Energy Gun EM Pulse Gun Ballistic Gun Improved Assault Rifle Build | -11 -10 -9 -8 ------- Run | Yrd Mat Mat Mat Slots Evolved 5 | . 1 2 2 Power 1 | . . . 1 Propulsion 2 | . . 2 . Utility 2 | . 1 . 1 Weapon . | . . . . Parts Attached 13 | . 8 3 2 Power 2 | . 1 . 1 Engine 1 | . 1 . . Core 1 | . . . 1 Reactor . | . . . . Propulsion 4 | . 2 2 . Treads . | . . . . Leg . | . . . . Wheel . | . . . . Hover . | . . . . Flight 4 | . 2 2 . Utility 1 | . . . 1 Device . | . . . . Storage . | . . . . Processor . | . . . . Hackware 1 | . . . 1 Protection . | . . . . Artifact . | . . . . Weapon 6 | . 5 1 . Energy Gun 1 | . 1 . . Energy Cannon . | . . . . Ballistic Gun 5 | . 4 1 . Ballistic Cannon . | . . . . Launcher . | . . . . Special Weapon . | . . . . Impact Weapon . | . . . . Slashing Weapon . | . . . . Piercing Weapon . | . . . . Special Melee Weapon . | . . . . Unidentified Prototypes 1 | . 1 . . Parts Lost 7 | . . 1 6 Power 2 | . . . 2 Propulsion 4 | . . 1 3 Utility . | . . . . Weapon 1 | . . . 1 Highest Loss Streak 6 | . . 1 6 To Critical Strikes . | . . . . Average Slot Usage (%) 47 | . 38 64 55 Engine 7 | . 7 10 7 Core 1 | . . . 6 Flight 20 | . 15 34 22 Ballistic Gun 16 | . 15 20 16 Peak Build Rating 17 | . 9 12 17 Average Rating 8 | . 4 10 14 On Entrance 4 | . . 8 11 Naked Turns 69 | . 69 . . Heaviest Build 14 | . 9 9 14 Greatest Support 16 | 3 8 16 12 Greatest Overweight (x) 1 | . 1 . 1 Average Overweight (x) . | . . . . Largest Inventory Capacity 5 | 5 5 5 5 Average Capacity 5 | 5 5 5 5 Most Carried 5 | . 5 5 5 Average Carried 3 | . 2 4 4 Final Capacity 5 | 5 5 5 5 Final Carried 5 | . 5 4 4 Class Distribution -------------------- 84% | Hacker-Mutant 7% | Scavenger-Mutant 7% | Hacker-Sprinter Dominant Class ---------------- Hacker-Mutant | -10/Materials Hacker-Sprinter | -9/Materials Hacker-Mutant | -8/Materials Resources | -11 -10 -9 -8 ----------- Run | Yrd Mat Mat Mat Matter Collected 368 | 148 145 75 . Remotely . | . . . . Salvage Created 418 | . 209 50 159 Parts 37 | . 22 3 12 Haulers Intercepted . | . . . . Recyclers Shooed 1 | . 1 . . Parts Field Recycled . | . . . . Retrieved Matter . | . . . . Parts Self-Destructed . | . . . . Prevented . | . . . . Kills | -11 -10 -9 -8 ------- Run | Yrd Mat Mat Mat Combat Hostiles Destroyed 10 | . 6 1 3 Guns 10 | . 6 1 3 Classes Destroyed 4 | . 3 1 . Recycler 1 | . 1 . . Watcher 2 | . 2 . . Swarmer 6 | . 6 . . Sentry 4 | . . 1 3 Best Kill Streak 4 | . 4 1 2 Combat Bots Only 4 | . 4 1 2 Max Kills in Single Turn 2 | . 2 1 1 Gunslinging 1 | . 1 . . Exploded . | . . . . Melee . | . . . . Uniques/NPCs Destroyed . | . . . . Combat | -11 -10 -9 -8 -------- Run | Yrd Mat Mat Mat Hostile Shots Fired 112 | . 20 9 83 Missed 38 | . 8 4 26 Damage Taken 668 | . 89 42 537 Core 190 | . 67 11 112 Absorbed by Shields . | . . . . Ignored by Resistances 410 | . 59 26 325 Core Remaining (%) 90 | 100 73 97 . Volleys Fired 42 | . 22 5 15 Largest 2 | . 2 2 2 Hottest 46 | . 43 46 46 Shots Fired 69 | . 29 10 30 Gun 69 | . 29 10 30 Cannon . | . . . . Launcher . | . . . . Special . | . . . . Kinetic 59 | . 19 10 30 Thermal . | . . . . Explosive . | . . . . Electromagnetic 10 | . 10 . . Robot Hit Streak 10 | . 10 7 9 Robot Miss Streak 1 | . 1 1 1 Penetration Max . | . . . . Secondary Targets 3 | . 1 . 2 Max Gunslinging Chain 1 | . 1 . 1 Shots Hit Robots 59 | . 24 8 27 Core Hits 23 | . 13 2 8 Critical Kills . | . . . . Critical Parts Destroyed . | . . . . Critical Strikes . | . . . . Melee Attacks . | . . . . Impact . | . . . . Slashing . | . . . . Piercing . | . . . . Sneak Attacks . | . . . . Combat Hostiles . | . . . . Follow-up Attacks . | . . . . Damage Inflicted 840 | . 268 142 430 Guns 840 | . 268 142 430 Cannons . | . . . . Explosions . | . . . . Melee . | . . . . Ramming . | . . . . Kinetic 750 | . 178 142 430 Thermal . | . . . . Explosive . | . . . . Electromagnetic 90 | . 90 . . Impact . | . . . . Slashing . | . . . . Piercing . | . . . . Highest Corruption . | . . . . Average Corruption . | . . . . Corruption Purged . | . . . . Corruption Blocked . | . . . . Overload Shots . | . . . . Overflow Damage . | . . . . Projectiles . | . . . . Explosions . | . . . . Melee . | . . . . Knockbacks . | . . . . Impact . | . . . . Kinetic . | . . . . Secondary . | . . . . Self-Inflicted Damage . | . . . . Shots . | . . . . Rammed . | . . . . Targets Rammed . | . . . . Kicked . | . . . . Crushed . | . . . . Highest Temperature 185 | . 15 5 185 Average Temperature 56 | . 6 3 85 Received Heat Transfer 402 | . . 24 378 Siege Activations . | . . . . Robots Corrupted . | . . . . Combat Hostiles . | . . . . Parts Fried . | . . . . Impact Corruptions . | . . . . Robots Melted . | . . . . Combat Hostiles . | . . . . Parts Melted . | . . . . Heat Transferred . | . . . . Parts Sabotaged . | . . . . Parts Stolen . | . . . . Parts Stripped . | . . . . Power Chain Reactions . | . . . . Alert | -11 -10 -9 -8 ------- Run | Yrd Mat Mat Mat Peak Influence 289 | . 289 188 158 Initial 86 | . . 86 56 Average 114 | . 132 117 91 Maximum Alert Level 1 | . 1 . . Low Security (%) 84 | 100 69 100 100 Level 1 15 | . 30 . . Level 2 . | . . . . Level 3 . | . . . . Level 4 . | . . . . Level 5 . | . . . . High Security . | . . . . Max Security . | . . . . Squads Dispatched 2 | . . . 2 Investigation . | . . . . Extermination . | . . . . Reinforcement 1 | . . . 1 Assault . | . . . . Garrison 1 | . . . 1 Intercept . | . . . . Searches Triggered . | . . . . Construction Impeded . | . . . . Haulers Reinforced . | . . . . Active Scanning Responses . | . . . . Cargo Convoy Interrupts . | . . . . Stealth | -11 -10 -9 -8 --------- Run | Yrd Mat Mat Mat Distress Signals 2 | . . . 2 Communications Jammed . | . . . . Distress Signals . | . . . . Times Spotted 33 | . 13 6 14 Peak Tracking Total 11 | . 2 3 11 Tactical Retreats 2 | . 1 1 . Traps | -11 -10 -9 -8 ------- Run | Yrd Mat Mat Mat Traps Triggered 1 | . 1 . . Indirectly . | . . . . Trap Hack Attempts . | . . . . Triggered . | . . . . Disarmed . | . . . . Reprogrammed . | . . . . Reused . | . . . . Traps Extracted . | . . . . Installed . | . . . . Triggered . | . . . . Machines | -11 -10 -9 -8 ---------- Run | Yrd Mat Mat Mat Machines Disabled . | . . . . Max in Single Turn . | . . . . Machines Repaired . | . . . . Machines Dismantled . | . . . . Machines Sabotaged . | . . . . Overloaded Fab Kills . | . . . . Hacking | -11 -10 -9 -8 --------- Run | Yrd Mat Mat Mat Machines Accessed 4 | . 1 1 2 Terminals 4 | . 1 1 2 Fabricators . | . . . . Repair Stations . | . . . . Recycling Units . | . . . . Scanalyzers . | . . . . Garrison Access . | . . . . Total Hacks 11 | . 4 2 5 Successful 7 | . 2 2 3 Failed 4 | . 2 . 2 Catastrophic . | . . . . Database Lockouts . | . . . . Manual 8 | . 4 1 3 Terminals 11 | . 4 2 5 Fabricators . | . . . . Repair Stations . | . . . . Recycling Units . | . . . . Scanalyzers . | . . . . Garrison Access . | . . . . Terminal Hacks 6 | . 2 2 2 Level Access Points 3 | . 1 1 1 Branch Access Points 1 | . . . 1 Garrison Index 1 | . 1 . . Locate Traps 1 | . . 1 . Fabricator Hacks . | . . . . Repair Station Hacks . | . . . . Recycling Unit Hacks . | . . . . Scanalyzer . | . . . . Garrison Access Hacks . | . . . . Unauthorized Hacks 1 | . . . 1 Terminals 1 | . . . 1 Assimilate 1 | . . . 1 Fabricators . | . . . . Repair Stations . | . . . . Recycling Units . | . . . . Scanalyzers . | . . . . Garrison Access . | . . . . Data Cores Recovered . | . . . . Used . | . . . . Hacking Detections 1 | . . . 1 Full Trace Events . | . . . . Feedback Events . | . . . . Feedback Blocked . | . . . . Robot Schematics Acquired . | . . . . Robots Built . | . . . . Authchips . | . . . . Time . | . . . . Total Robot Build Rating . | . . . . Part Schematics Acquired . | . . . . Parts Built . | . . . . Authchips . | . . . . Time . | . . . . Total Part Build Rating . | . . . . Parts Repaired . | . . . . Time . | . . . . Parts Recycled . | . . . . Recycled Matter . | . . . . Retrieved Matter . | . . . . Retrieved Components . | . . . . Parts Scanalyzed . | . . . . Part Schematics Acquired . | . . . . Parts Damaged . | . . . . Bothacking | -11 -10 -9 -8 ------------ Run | Yrd Mat Mat Mat Used RIF Installer . | . . . . Robots Hacked . | . . . . Non-combat . | . . . . Combat . | . . . . Robot Hacks Applied . | . . . . Relay Couplers Released . | . . . . Fabnet Peak Effective % . | . . . . Robots Rewired . | . . . . Allies Hacked . | . . . . Hacks Repelled . | . . . . Allies | -11 -10 -9 -8 -------- Run | Yrd Mat Mat Mat Total Allies . | . . . . Largest Group . | . . . . Highest-Rated Group . | . . . . Highest-Rated Ally . | . . . . Total Orders . | . . . . Ally Attacks . | . . . . Total Damage . | . . . . Kills . | . . . . Allies Corrupted . | . . . . Allies Melted . | . . . . Intel | -11 -10 -9 -8 ------- Run | Yrd Mat Mat Mat Robot Analysis Total . | . . . . Derelict Logs Recovered . | . . . . Drone Launches . | . . . . Drone Recoveries . | . . . . Exploration | -11 -10 -9 -8 ------------- Run | Yrd Mat Mat Mat Turns Passed 556 | 15 284 99 158 Spaces Moved 858 | 29 515 196 118 Core 155 | 29 126 . . Treads . | . . . . Legs . | . . . . Wheels . | . . . . Hover . | . . . . Flight 703 | . 389 196 118 Fastest Speed 31 | 50 37 31 34 Average Speed 46 | 50 40 32 91 Slowest Speed 117 | 50 117 34 114 Overloaded Moves . | . . . . Propulsion Burnouts . | . . . . Robots Hopped 5 | . 5 . . Cave-ins Triggered . | . . . . Exploration Rate (%) 36 | 2 95 28 20 Regions Visited 3 Branch Regions . Pre-discovered Areas . | . . . . Known Exits Taken 3 | 1 1 1 . Unknown Exits Taken . | . . . . Scrap Searched . | . . . . Spaces Dug . | . . . . Terrain Destroyed . | . . . . Melee . | . . . . Projectile . | . . . . AOE . | . . . . Terrain Rammed . | . . . . Walls Destroyed . | . . . . Machines Disabled . | . . . . Actions | -11 -10 -9 -8 --------- Run | Yrd Mat Mat Mat Total 941 | 28 556 220 137 Wait 18 | . 3 15 . Move 846 | 28 505 195 118 Hop 3 | . 3 . . Pick Up 15 | . 12 1 2 Fast Attach 1 | . . 1 . Attach 12 | . 8 2 2 Detach 1 | . 1 . . Swap . | . . . . Drop 3 | . 2 1 . Fire 42 | . 22 5 15 Melee . | . . . . Ram . | . . . . Kick . | . . . . Crush . | . . . . Escape Stasis . | . . . . Rewire . | . . . . Trap . | . . . . Miscellaneous . | . . . . Route ------- -11/Scrapyard -10/Materials (discovered 3 exits: *Mat x3) -9/Materials (discovered 3 exits: *Mat x3) -8/Materials History --------- Turn | Location | Event 3 | -11/Scrapyard | Identified exit to Materials 3 | -11/Scrapyard | Discovered exit to Materials (range 15) 16 | -11/Scrapyard | Entered Materials 16 | -10/Materials | Evolved 1 slot: Utility x1 35 | -10/Materials | Identified exit to Materials 133 | -10/Materials | Identified exit to Mines 133 | -10/Materials | Discovered exit to Mines (range 13) 185 | -10/Materials | Discovered exit to Mines (range 4) 300 | -10/Materials | Entered another Materials area 300 | -9/Materials | Evolved 2 slots: Propulsion x2 308 | -9/Materials | Identified exit to Materials 399 | -9/Materials | Entered another Materials area 399 | -8/Materials | Evolved 2 slots: Power x1, Utility x1 502 | -8/Materials | Identified exit to Factory 514 | -8/Materials | Garrison activated, responded to threat 557 | -8/Materials | Self-destructed Last Messages --------------- reinforcements to Terminal M005. Y-45 Defender destroyed. Switching to secondary target: Y-45 Defender. Flight Unit destroyed. K-01 Serf collects debris. Lgt. Ion Engine destroyed. Critical hit (Burn: +37). K-01 Serf collects debris. Flight Unit destroyed. Lgt. Nuclear Core destroyed. Critical hit (Burn: +37). Y-45 Defender destroyed. Switching to secondary target: Y-45 Defender. R-06 Scavenger collects Hvy. Assault Rifle. R-06 Scavenger collects Lgt. Armor Plating. K-01 Serf collects debris. R-06 Scavenger collects Lgt. Armor Plating. K-01 Serf collects debris. R-06 Scavenger collects Beam Rifle. Imp. Assault Rifle destroyed. Map ----- +----------------------------------------------------+ | ?????????????????????????????????????????????????? | | ?????????????????????????????????????????????????? | |